bitfinex/quotes_SOLUSD_20250724
["timestamp","ask_amount","ask_price","bid_price","bid_amount"]
[1753393835590,43.83404421,186.61,186.59,0.72]
[1753393836273,43.83404421,186.61,186.57,6.1466156]
[1753393836472,43.83404421,186.61,186.58,0.72]
[1753393836878,43.83404421,186.61,186.59,0.72]
[1753393838781,43.83404421,186.61,186.57,0.72]
[1753393841290,26.0,186.59,186.58,0.72]
[1753393841492,63.96,186.59,186.58,0.72]
[1753393842184,63.96,186.59,186.56,6.1466156]
[1753393842385,5.89490584,186.58,186.56,0.72]
[1753393842586,5.89490584,186.58,186.57,0.72]
[1753393842982,5.89490584,186.58,186.55,0.06]
[1753393842983,6.55490584,186.58,186.55,0.06]
[1753393843285,37.94,186.57,186.55,0.06]
[1753393843602,0.53527459,186.56,186.55,0.06]
[1753393844500,5.89548042,186.56,186.55,0.06]
[1753393848783,28.76677999,186.56,186.55,0.06]
[1753393849898,28.10677999,186.56,186.55,0.06]
[1753393850077,22.68016439,186.56,186.55,0.06]
[1753393850704,26.9241654,186.56,186.55,0.06]
[1753393851006,175.9241654,186.56,186.55,0.06]
[1753393851299,181.75982955,186.56,186.55,0.06]
[1753393853406,176.33321395,186.56,186.55,0.06]
[1753393853591,181.75982955,186.56,186.55,0.06]
[1753393854703,219.05982955,186.56,186.55,0.06]
[1753393855288,214.29321395,186.56,186.55,0.06]
[1753393855489,219.71982955,186.56,186.55,0.06]
[1753393856825,235.71982955,186.56,186.55,0.06]
[1753393861294,235.69982955,186.56,186.55,0.06]
[1753393862014,196.81550641,186.56,186.55,0.06]
[1753393862202,234.75550641,186.56,186.55,0.73]
[1753393862401,196.81550641,186.56,186.55,0.73]
[1753393862603,234.75550641,186.56,186.55,0.73]
[1753393864434,217.97082244,186.56,186.55,0.73]
[1753393865396,229.32889081,186.56,186.55,0.73]
[1753393865594,234.75550641,186.56,186.55,0.73]
[1753393865993,234.75550641,186.56,186.55,0.06]
[1753393869310,232.80788403,186.56,186.55,0.06]
[1753393873919,212.54420684,186.56,186.55,0.06]
[1753393874127,212.54420684,186.56,186.55,0.73]
[1753393874321,216.02320006,186.56,186.55,0.73]
[1753393878128,212.54420684,186.56,186.55,0.73]
[1753393879633,208.30020583,186.56,186.55,0.73]
[1753393879807,200.30020583,186.56,186.55,0.73]
[1753393882829,203.77919905,186.56,186.55,0.06]
[1753393883132,221.22388302,186.56,186.55,0.06]
[1753393887635,221.22388302,186.56,186.52,0.68]
[1753393887636,26.0,186.53,186.52,0.68]
[1753393887819,63.92,186.53,186.52,0.68]
[1753393888738,69.28106792,186.53,186.52,0.68]
[1753393895937,31.36106792,186.53,186.52,0.68]
[1753393896135,69.28106792,186.53,186.52,0.68]
[1753393900347,26.0,186.53,186.52,4.15899322]
[1753393900652,220.92,186.56,186.52,4.15899322]
[1753393900939,26.0,186.54,186.53,4.15899322]
[1753393901243,26.0,186.54,186.53,3.47899322]
[1753393901545,45.92,186.56,186.53,3.47899322]
[1753393901746,45.92,186.56,186.53,4.15899322]
[1753393902058,51.28023418,186.56,186.54,0.68]
[1753393902732,13.36023418,186.56,186.54,4.15899322]
[1753393902937,13.36023418,186.56,186.55,0.68]
[1753393905134,8.0,186.56,186.55,3.98899322]
[1753393906850,8.0,186.56,186.55,4.27331636]
[1753393907969,8.0,186.56,186.55,9.63380952]
[1753393909253,8.0,186.56,186.55,6.1548163]
[1753393909646,8.0,186.56,186.55,9.63380952]
[1753393911360,8.0,186.56,186.55,26.41849349]
[1753393912956,8.03,186.56,186.55,26.41849349]
[1753393913755,8.03,186.56,186.55,40.33446637]
[1753393914046,0.03,186.6,186.58,0.28432314]
[1753393914259,0.03,186.6,186.59,4.44331636]
[1753393914558,0.03,186.6,186.59,59.20800033]
[1753393915737,26.0,186.68,186.6,17.06900711]
[1753393915738,31.35679865,186.68,186.6,17.06900711]
[1753393915937,31.35679865,186.68,186.66,3.47899322]
[1753393916137,31.35679865,186.68,186.67,0.68]
[1753393918156,0.03,186.69,186.67,4.15899322]
[1753393918476,26.0,186.68,186.67,0.68]
[1753393918653,26.0,186.68,186.67,4.15899322]
[1753393919049,0.03,186.69,186.67,4.15899322]
[1753393919250,0.03,186.69,186.68,4.15899322]
[1753393921156,0.03,186.69,186.68,6.10419602]
[1753393922363,0.03,186.69,186.68,6.38851916]
[1753393930269,0.03,186.69,186.68,11.74527939]
[1753393932587,0.03,186.73,186.69,0.28432314]
[1753393932766,0.03,186.73,186.72,5.70851916]
[1753393932976,0.03,186.73,186.72,6.38851916]
[1753393935285,0.03,186.73,186.72,0.96432314]
[1753393935583,0.03,186.73,186.72,6.38851916]
[1753393935893,0.03,186.73,186.72,11.74413184]
[1753393938397,0.03,186.73,186.72,28.52881581]
[1753393941194,0.03,186.73,186.72,26.573297]
[1753393944694,0.03,186.77,186.76,3.46867721]
[1753393944893,0.03,186.77,186.76,41.67300035]
[1753393945097,0.03,186.77,186.76,42.35300035]
[1753393947672,0.03,186.77,186.76,47.70746597]
[1753393950522,0.03,186.77,186.76,64.49214994]
[1753393951275,0.03,186.8,186.79,42.78468397]
[1753393951481,0.03,186.84,186.8,0.28432314]
[1753393951781,0.03,186.84,186.81,43.93303249]
[1753393951994,0.03,186.84,186.82,0.68]
[1753393952303,0.03,186.84,186.83,41.65300035]
[1753393952497,0.03,186.84,186.83,55.52770919]
[1753393952685,0.03,186.84,186.83,56.20770919]
[1753393952885,0.03,186.84,186.83,42.33300035]
[1753393953210,0.03,186.84,186.83,44.27790951]
[1753393953699,0.03,186.84,186.83,71.8286393]
[1753393956691,0.03,186.85,186.84,0.28432314]
[1753393956894,0.03,186.85,186.84,11.79149588]
[1753393957912,0.03,186.85,186.84,17.14366886]
[1753393962289,0.03,186.85,186.84,5.41358637]
[1753393962612,0.03,186.85,186.84,43.25358637]
[1753393963006,0.03,186.85,186.84,43.53790951]
[1753393963399,0.03,186.85,186.84,43.25358637]
[1753393963622,0.03,186.85,186.84,43.53790951]
[1753393963829,0.03,186.85,186.84,43.25358637]
[1753393964127,0.03,186.85,186.84,43.53790951]
[1753393966732,26.0,186.77,186.76,0.06]
[1753393966890,28.2699,186.77,186.76,0.06]
[1753393967409,34.4899,186.77,186.76,0.06]
[1753393967908,40.43876096,186.77,186.71,38.78]
[1753393968211,26.0,186.73,186.69,38.78]
[1753393968717,6.06568669,186.72,186.69,38.78]
[1753393968906,5.35568669,186.72,186.69,38.78]
[1753393969093,0.71,186.71,186.69,38.78]
[1753393969292,0.71,186.71,186.69,44.19358637]
[1753393969497,0.71,186.71,186.69,38.78]
[1753393970416,0.71,186.71,186.69,44.19358637]
[1753393970612,0.53527459,186.72,186.69,5.41358637]
[1753393970827,0.71,186.7,186.68,5.41358637]
[1753393970996,0.71,186.7,186.69,38.74]
[1753393975917,0.71,186.7,186.68,5.41358637]
[1753393976118,5.89094942,186.72,186.69,38.68]
[1753393976824,0.71,186.71,186.68,5.41358637]
[1753393977027,0.71,186.71,186.69,38.68]
[1753393977627,0.71,186.71,186.68,5.41358637]
[1753393977827,0.71,186.71,186.69,38.68]
[1753393978924,0.71,186.71,186.68,5.41358637]
[1753393979128,0.71,186.71,186.69,38.66]
[1753393980030,5.89094942,186.72,186.69,38.66]
[1753393980331,0.68,186.7,186.69,38.66]
[1753393981330,0.68,186.7,186.69,38.6]
[1753393982723,0.68,186.7,186.69,38.62]
[1753393982922,0.68,186.7,186.69,38.6]
[1753393985811,0.68,186.7,186.68,5.47358637]
[1753393986015,0.68,186.7,186.69,38.54]
[1753393987327,6.57094942,186.72,186.69,38.54]
[1753393987524,0.68,186.71,186.69,38.54]
[1753393989934,5.89094942,186.72,186.69,38.54]
[1753393990137,5.89094942,186.72,186.69,44.63358637]
[1753393990434,6.57094942,186.72,186.69,43.95358637]
[1753393990632,5.89094942,186.72,186.69,44.63358637]
[1753393991340,6.57094942,186.72,186.69,44.63358637]
[1753393991641,6.57094942,186.72,186.69,43.95358637]
[1753393994219,0.53527459,186.72,186.7,0.68]
[1753393994843,0.53527459,186.72,186.69,43.95358637]
[1753393995041,0.53527459,186.72,186.69,44.63358637]
[1753393996035,31.35553418,186.73,186.69,44.63358637]
[1753393996246,32.03553418,186.73,186.69,44.63358637]
[1753393996551,0.53527459,186.72,186.69,39.22]
[1753393996732,0.53527459,186.72,186.7,0.68]
[1753393996934,0.53527459,186.72,186.71,38.44]
[1753393997145,32.03553418,186.73,186.71,38.44]
[1753393997645,0.53527459,186.72,186.71,38.44]
[1753393998328,32.03553418,186.73,186.71,38.44]
[1753393998727,0.53527459,186.72,186.71,38.44]
[1753393999843,32.03553418,186.73,186.71,38.44]
[1753394000236,0.53527459,186.72,186.71,38.44]
[1753394000546,32.03553418,186.73,186.71,38.44]
[1753394001137,31.35553418,186.73,186.71,38.44]
[1753394001538,31.89080877,186.73,186.71,38.44]
[1753394002635,31.35553418,186.73,186.71,38.44]
[1753394002831,26.0,186.73,186.71,38.44]
[1753394005147,26.0,186.73,186.6,0.06]
[1753394005148,42.78468397,186.61,186.6,0.06]
[1753394005349,43.6042817,186.61,186.6,0.06]
[1753394005534,43.6042817,186.61,186.52,38.6]
[1753394005535,0.28432314,186.6,186.52,38.6]
[1753394005735,4.00656922,186.59,186.52,42.07129463]
[1753394006250,0.65,186.58,186.52,42.07129463]
[1753394006433,0.53527459,186.57,186.52,42.07129463]
[1753394006750,0.65,186.56,186.51,0.2003]
[1753394006954,0.53527459,186.55,186.51,38.7803]
[1753394007142,0.65,186.54,186.51,38.7803]
[1753394007347,0.53527459,186.53,186.51,38.7803]
[1753394008144,0.53527459,186.53,186.51,0.2003]
[1753394008346,0.53527459,186.53,186.51,38.7603]
[1753394011151,0.53527459,186.53,186.51,0.2003]
[1753394011342,0.53527459,186.54,186.52,38.54]
[1753394013548,0.53527459,186.54,186.52,38.56]
[1753394013756,0.53527459,186.54,186.51,44.17580931]
[1753394014455,0.53527459,186.54,186.52,38.52]
[1753394014658,0.53527459,186.54,186.52,43.95550931]
[1753394016377,26.0,186.55,186.53,6.14550931]
[1753394016541,68.13069452,186.58,186.54,6.14550931]
[1753394016862,68.13069452,186.58,186.57,5.43550931]
[1753394017041,68.13069452,186.58,186.57,6.14550931]
[1753394017869,0.53527459,186.65,186.57,6.14550931]
[1753394018165,0.53527459,186.65,186.61,5.43550931]
[1753394018347,0.53527459,186.65,186.61,50.57419302]
[1753394018542,0.53527459,186.65,186.62,0.71]
[1753394019850,0.53527459,186.65,186.63,0.71]
[1753394020070,0.53527459,186.67,186.62,10.79390844]
[1753394020271,0.53527459,186.67,186.64,0.71]
[1753394020567,0.53527459,186.67,186.65,0.71]
[1753394021169,0.53527459,186.68,186.65,0.71]
[1753394024974,0.53527459,186.68,186.64,5.43550931]
[1753394025162,0.53527459,186.68,186.52,0.71]
[1753394025163,16.78468397,186.61,186.52,0.71]
[1753394025468,0.53527459,186.61,186.58,6.14550931]
[1753394025650,0.53527459,186.61,186.58,5.43550931]
[1753394025847,0.53527459,186.62,186.59,6.14550931]
[1753394026066,0.53527459,186.62,186.6,0.71]
[1753394026470,0.53527459,186.62,186.61,0.71]
[1753394027066,0.53527459,186.63,186.61,0.71]
[1753394027573,0.53527459,186.63,186.6,5.43550931]
[1753394028079,5.89352799,186.63,186.6,6.14550931]
[1753394030776,5.89352799,186.63,186.6,0.71]
[1753394032059,5.89352799,186.63,186.61,0.71]
[1753394032370,5.89352799,186.63,186.6,5.43550931]
[1753394032371,0.53527459,186.64,186.62,0.71]
[1753394033069,5.89319452,186.64,186.62,0.71]
[1753394033270,5.35791993,186.64,186.62,0.71]
[1753394035081,5.8928958,186.65,186.6,5.43550931]
[1753394035389,5.8928958,186.65,186.61,0.71]
[1753394035964,5.8928958,186.65,186.6,5.43550931]
[1753394036286,5.8928958,186.65,186.61,0.71]
[1753394037985,5.8928958,186.65,186.6,5.43550931]
[1753394038294,6.5428958,186.65,186.61,0.65]
[1753394039793,5.8928958,186.65,186.61,0.65]
[1753394040089,6.5428958,186.65,186.61,0.65]
[1753394041795,0.53527459,186.65,186.62,5.43550931]
[1753394041999,26.03,186.67,186.62,5.43550931]
[1753394042173,26.03,186.67,186.63,0.65]
[1753394042989,31.38707157,186.67,186.63,0.65]
[1753394044878,0.03,186.67,186.63,11.44368029]
[1753394045203,0.03,186.67,186.63,5.35817098]
[1753394045403,16.92684554,186.6,186.52,6.08550931]
[1753394045593,46.1007839,186.59,186.52,5.43550931]
[1753394045792,0.65,186.58,186.51,5.69580931]
[1753394045995,0.53527459,186.57,186.52,5.43550931]
[1753394046302,0.65,186.56,186.53,5.43550931]
[1753394046487,0.53527459,186.55,186.53,5.43550931]
[1753394047308,6.54578351,186.55,186.53,5.43550931]
[1753394047808,1.18527459,186.55,186.53,5.43550931]
[1753394048135,1.18527459,186.55,186.51,0.2603]
[1753394048136,0.53527459,186.55,186.54,5.43550931]
[1753394048307,5.36018123,186.57,186.54,5.43550931]
[1753394048505,0.53527459,186.56,186.54,5.43550931]
[1753394049206,5.89552936,186.56,186.54,5.43550931]
[1753394050906,5.89552936,186.56,186.53,5.43550931]
[1753394050907,6.54552936,186.56,186.53,5.43550931]
[1753394054309,5.89552936,186.56,186.51,0.2603]
[1753394054616,5.89552936,186.56,186.53,5.43550931]
[1753394055105,0.53527459,186.56,186.54,5.43550931]
[1753394055290,0.53527459,186.56,186.54,6.08550931]
[1753394056090,0.53527459,186.56,186.54,0.65]
[1753394056299,0.53527459,186.56,186.54,6.08550931]
[1753394056702,0.53527459,186.56,186.54,5.43550931]
[1753394057097,5.89558415,186.56,186.54,5.43550931]
[1753394057310,5.89558415,186.56,186.53,5.43550931]
[1753394057516,5.89558415,186.56,186.53,6.08550931]
[1753394059317,5.89558415,186.56,186.53,5.43550931]
[1753394059491,5.89558415,186.56,186.54,0.65]
[1753394060201,0.53527459,186.56,186.54,0.65]
[1753394061002,0.53527459,186.56,186.54,6.08550931]
[1753394062998,0.53527459,186.57,186.54,6.08550931]
[1753394063198,0.53527459,186.57,186.54,0.65]
[1753394064304,0.53527459,186.57,186.55,0.65]
[1753394065024,0.53527459,186.57,186.56,0.65]
[1753394065308,0.53527459,186.57,186.53,5.43550931]
[1753394065510,0.53527459,186.57,186.54,6.08550931]
[1753394065718,0.53527459,186.57,186.55,0.65]
[1753394065890,0.53527459,186.58,186.54,5.43550931]
[1753394066093,0.53527459,186.58,186.56,0.65]
[1753394067918,0.53527459,186.59,186.57,0.72]
[1753394068427,0.53527459,186.59,186.57,6.15550931]
[1753394068609,188.5,186.6,186.58,6.15550931]
[1753394069295,188.5,186.6,186.59,0.72]
[1753394069496,149.0,186.6,186.59,0.72]
[1753394070595,149.03,186.6,186.59,0.72]
[1753394072726,0.03,186.6,186.59,0.72]
[1753394073218,0.03,186.6,186.59,6.15550931]
[1753394073704,0.03,186.6,186.59,11.51485332]
[1753394074303,0.03,186.6,186.59,6.15550931]
[1753394075020,0.03,186.6,186.59,0.72]
[1753394075339,0.03,186.6,186.52,27.88102314]
[1753394075340,17.06900711,186.55,186.44,8.90440577]
[1753394075624,17.06900711,186.55,186.34,0.72]
[1753394075625,0.28432314,186.4,186.34,0.72]
[1753394075927,0.53527459,186.39,186.34,0.72]
[1753394076494,0.53527459,186.39,186.31,45.39550931]
[1753394076699,0.53527459,186.39,186.31,46.11550931]
[1753394076901,0.53527459,186.39,186.33,5.43550931]
[1753394077405,5.43550931,186.34,186.27,0.72]
[1753394077622,5.43550931,186.32,186.27,0.72]
[1753394077920,0.53527459,186.31,186.27,0.72]
[1753394079214,0.78527459,186.31,186.27,0.72]
[1753394079902,5.43550931,186.29,186.23,0.78]
[1753394080105,0.53527459,186.28,186.24,0.72]
[1753394080306,5.43550931,186.27,186.24,0.72]
[1753394080513,5.9707839,186.26,186.23,0.06]
[1753394081527,6.6207839,186.26,186.23,0.06]
[1753394082806,1.18527459,186.26,186.23,0.06]
[1753394083022,6.6207839,186.26,186.23,0.06]
[1753394083311,5.43550931,186.24,186.23,0.06]
[1753394083509,5.9707839,186.24,186.23,0.06]
[1753394084120,0.53527459,186.24,186.23,0.06]
[1753394085100,8.52369657,186.24,186.23,0.06]
[1753394085827,7.98842198,186.24,186.23,0.06]
[1753394088808,7.98842198,186.24,186.23,5.49550931]
[1753394090013,7.98842198,186.24,186.23,10.86521343]
[1753394097244,7.98842198,186.24,186.23,0.06]
[1753394098941,7.98842198,186.24,186.23,5.49550931]
[1753394100230,7.98842198,186.24,186.23,0.06]
[1753394100532,7.98842198,186.24,186.23,10.86521343]
[1753394101038,7.98842198,186.24,186.23,5.42970412]
[1753394101646,7.98842198,186.24,186.23,0.06]
[1753394102546,0.53527459,186.29,186.23,0.06]
[1753394104146,0.53527459,186.29,186.25,5.43550931]
[1753394104352,0.53527459,186.34,186.27,5.43550931]
[1753394104553,0.53527459,186.34,186.28,5.43550931]
[1753394104853,5.9707839,186.34,186.28,5.43550931]
[1753394105149,0.53527459,186.35,186.29,5.43550931]
[1753394105338,8.09785442,186.36,186.3,5.43550931]
[1753394105649,8.09785442,186.36,186.31,5.43550931]
[1753394105829,8.09785442,186.36,186.31,45.41550931]
[1753394106341,8.09785442,186.36,186.32,5.36711034]
[1753394106647,7.56257983,186.36,186.33,0.68]
[1753394106948,7.56257983,186.36,186.34,0.68]
[1753394107151,0.53527459,186.39,186.34,0.68]
[1753394107539,1.18527459,186.39,186.34,0.68]
[1753394107744,27.18527459,186.39,186.34,0.68]
[1753394108556,27.18527459,186.39,186.35,0.68]
[1753394109052,0.53527459,186.41,186.36,0.68]
[1753394109251,8.1660839,186.42,186.36,0.68]
[1753394109559,0.03,186.44,186.38,5.43550931]
[1753394109560,0.56527459,186.44,186.38,5.43550931]
[1753394109767,0.56527459,186.44,186.39,6.11550931]
[1753394110060,0.56527459,186.44,186.41,5.43550931]
[1753394110262,0.03,186.44,186.41,5.43550931]
[1753394110559,0.03,186.44,186.42,11.47964035]
[1753394111264,0.03,186.44,186.43,6.11550931]
[1753394111634,0.03,186.44,186.43,45.97550931]
[1753394112441,0.03,186.44,186.43,51.33945288]
[1753394114534,0.03,186.44,186.43,51.08945288]
[1753394115234,0.03,186.44,186.43,51.37377602]
[1753394117942,0.03,186.44,186.43,69.80285999]
[1753394118339,0.03,186.52,186.47,26.0]
[1753394118535,0.03,186.52,186.5,5.43550931]
[1753394118761,0.03,186.52,186.51,39.7]
[1753394124748,0.03,186.52,186.51,45.81550931]
[1753394125382,0.03,186.52,186.51,51.46147525]
[1753394127860,0.03,186.52,186.51,94.24615922]
[1753394129163,0.62365715,186.6,186.51,94.24615922]
[1753394129467,0.62365715,186.6,186.56,5.43550931]
[1753394129656,5.35884022,186.61,186.57,39.44]
[1753394130943,5.89378609,186.62,186.57,45.55550931]
[1753394131149,5.3585115,186.62,186.58,0.68]
[1753394131350,5.3585115,186.62,186.59,39.4]
[1753394131646,0.1,186.63,186.6,0.68]
[1753394131947,0.1,186.63,186.61,39.4]
[1753394134973,0.1,186.63,186.61,44.83550931]
[1753394135360,0.1,186.63,186.61,45.51550931]
[1753394135955,0.1,186.63,186.62,0.68]
[1753394137170,0.1,186.63,186.62,6.11550931]
[1753394137850,0.1,186.63,186.62,28.25867575]
[1753394138050,0.03,186.64,186.63,17.06900711]
[1753394138263,0.03,186.64,186.63,62.44451642]
[1753394138666,0.03,186.67,186.63,67.88002573]
[1753394138861,0.03,186.67,186.66,10.87101862]
[1753394139068,0.03,186.67,186.66,50.11101862]
[1753394139370,0.03,186.67,186.66,50.79101862]
[1753394139869,0.03,186.67,186.66,56.43267595]
[1753394141054,0.03,186.67,186.58,10.0]
[1753394141055,1.5193,186.66,186.54,10.34691618]
[1753394141253,1.5193,186.66,186.53,5.43550931]
[1753394141254,26.0,186.6,186.53,5.43550931]
[1753394141456,16.78468397,186.58,186.51,5.43550931]
[1753394141657,12.71429912,186.57,186.49,5.49550931]
[1753394141873,5.43550931,186.55,186.49,39.66]
[1753394142079,1.36009756,186.54,186.49,39.66]
[1753394142266,0.67009756,186.54,186.49,39.66]
[1753394142472,0.69,186.53,186.49,39.66]
[1753394142680,0.67016941,186.52,186.49,39.66]
[1753394142981,0.69,186.51,186.49,39.66]
[1753394144278,0.69,186.51,186.49,0.06]
[1753394144279,1.36024128,186.5,186.49,0.06]
[1753394145584,6.72217157,186.5,186.49,0.06]
[1753394145779,0.67024128,186.5,186.49,0.06]
[1753394146660,1.36024128,186.5,186.49,0.06]
[1753394148878,0.67024128,186.5,186.49,0.06]
[1753394149080,6.05108915,186.53,186.49,0.06]
[1753394149269,0.67016941,186.52,186.49,0.06]
[1753394150184,1.36016941,186.52,186.49,0.06]
[1753394150991,1.36016941,186.52,186.5,39.52]
[1753394151386,0.67013349,186.53,186.5,39.52]
[1753394151574,0.67009756,186.54,186.5,39.52]
[1753394151779,0.67009756,186.54,186.5,40.2]
[1753394152082,0.67006164,186.55,186.51,0.68]
[1753394152995,1.36002572,186.56,186.51,0.68]
[1753394153182,1.36002572,186.56,186.5,53.74171634]
[1753394153368,0.67002572,186.56,186.51,0.68]
[1753394153789,1.36002572,186.56,186.51,0.68]
[1753394156794,6.72025187,186.56,186.51,0.68]
[1753394158480,15.58005674,186.56,186.51,0.68]
[1753394159089,6.72025187,186.56,186.51,0.68]
[1753394159287,15.58005674,186.56,186.51,0.68]
[1753394159470,6.72025187,186.56,186.51,0.68]
[1753394159872,14.21970039,186.58,186.52,8.85980487]
[1753394160094,0.66998981,186.57,186.53,39.36]
[1753394160395,0.66998981,186.57,186.53,40.04]
[1753394162976,6.02994126,186.57,186.53,40.04]
[1753394164687,6.0696626,186.58,186.53,40.04]
[1753394164891,6.7396165,186.58,186.54,0.68]
[1753394165195,6.0296165,186.58,186.54,0.68]
[1753394165586,6.0296165,186.58,186.55,0.68]
[1753394165802,0.6699539,186.58,186.55,0.68]
[1753394166098,0.6699539,186.58,186.56,39.26]
[1753394166295,5.3593966,186.59,186.56,39.26]
[1753394168983,5.3593966,186.59,186.56,39.94]
[1753394169602,1.3798821,186.6,186.56,39.94]
[1753394169804,0.6698821,186.6,186.57,0.68]
[1753394171101,0.6698821,186.6,186.56,39.26]
[1753394171302,0.03,186.62,186.58,0.68]
[1753394171601,0.03,186.62,186.59,39.18]
[1753394172284,0.03,186.62,186.27,42.30474351]
[1753394172285,1.5524,186.59,186.27,42.30474351]
[1753394172606,17.06900711,186.42,186.33,5.43382494]
[1753394172787,17.06900711,186.42,186.33,45.49382494]
[1753394172788,28.81759226,186.42,186.33,45.49382494]
[1753394173097,28.81759226,186.42,186.41,1e-08]
[1753394173299,32.25754487,186.42,186.41,1e-08]
[1753394175002,72.27754487,186.42,186.41,1e-08]
[1753394175299,72.27754487,186.42,186.28,0.68]
[1753394175300,26.0,186.35,186.28,40.74]
[1753394175490,9.54459433,186.34,186.28,40.74]
[1753394176507,8.87377755,186.31,186.25,0.68]
[1753394176713,0.67096081,186.3,186.26,40.04]
[1753394176887,0.67096081,186.3,186.26,40.72]
[1753394177582,0.6709248,186.31,186.26,0.68]
[1753394177784,8.87377755,186.3,186.22,41.05797755]
[1753394178089,8.87377755,186.3,186.23,40.02]
[1753394178090,8.87377755,186.28,186.23,40.02]
[1753394178282,0.67106887,186.27,186.23,40.02]
[1753394178514,9.54477438,186.29,186.23,40.7]
[1753394179209,9.54477438,186.29,186.23,0.68]
[1753394179711,0.67099683,186.29,186.23,0.68]
[1753394180111,0.67099683,186.29,186.23,9.55377755]
[1753394181211,0.67099683,186.29,186.23,54.92347876]
[1753394182714,0.67099683,186.29,186.23,54.98347876]
[1753394182912,0.67099683,186.29,186.25,8.87377755]
[1753394183236,0.6709248,186.31,186.26,0.68]
[1753394183394,0.6709248,186.31,186.26,5.36866216]
[1753394183585,0.6709248,186.31,186.27,0.68]
[1753394183787,8.87377755,186.3,186.27,0.68]
[1753394183987,8.87377755,186.3,186.23,48.93377755]
[1753394183988,0.67099683,186.29,186.24,6.04938457]
[1753394184188,0.67099683,186.29,186.25,0.68]
[1753394185204,0.67099683,186.29,186.24,5.36938457]
[1753394185412,0.67099683,186.29,186.24,6.04938457]
[1753394185722,0.67099683,186.29,186.25,0.68]
[1753394185920,0.67103285,186.28,186.25,0.68]
[1753394186094,0.67096081,186.3,186.25,0.68]
[1753394186403,0.67096081,186.3,186.26,0.68]
[1753394188118,0.67096081,186.3,186.24,14.24316803]
[1753394188119,0.67096081,186.3,186.27,0.72]
[1753394188512,0.67096081,186.3,186.24,14.24316803]
[1753394188717,0.67096081,186.3,186.25,0.72]
[1753394188919,0.67096081,186.3,186.26,0.72]
[1753394190400,0.67096081,186.3,186.25,8.87377755]
[1753394190810,0.67096081,186.3,186.26,0.72]
[1753394191917,0.67096081,186.3,186.27,0.72]
[1753394192320,0.67096081,186.3,186.25,9.59377755]
[1753394192704,0.67096081,186.3,186.24,14.24315043]
[1753394193022,0.67096081,186.3,186.26,0.72]
[1753394193413,0.67096081,186.3,186.25,39.74]
[1753394193723,0.67096081,186.3,186.27,0.72]
[1753394195731,0.67085278,186.33,186.28,0.72]
[1753394195931,0.67085278,186.33,186.29,5.45012708]
[1753394196234,0.67085278,186.33,186.3,0.72]
[1753394196400,0.67085278,186.33,186.31,0.72]
[1753394196819,0.67081678,186.34,186.31,0.72]
[1753394197515,0.67081678,186.34,186.3,0.72]
[1753394197720,0.67081678,186.34,186.31,0.72]
[1753394201408,6.12094386,186.34,186.31,0.72]
[1753394202609,0.67081678,186.34,186.31,0.72]
[1753394203629,0.67081678,186.34,186.32,0.72]
[1753394203829,0.67085278,186.33,186.32,0.72]
[1753394204830,0.67081678,186.34,186.32,0.72]
[1753394205214,0.67081678,186.34,186.33,0.72]
[1753394205808,0.67078078,186.35,186.33,0.72]
[1753394207921,0.67078078,186.35,186.31,0.72]
[1753394208125,0.67078078,186.35,186.32,0.72]
[1753394208329,0.67078078,186.35,186.3,10.81773341]
[1753394208330,11.48716361,186.35,186.3,0.72]
[1753394208505,11.48716361,186.35,186.31,0.72]
[1753394209211,11.48716361,186.35,186.32,0.72]
[1753394214526,6.12090786,186.35,186.33,0.72]
[1753394215240,0.67078078,186.35,186.3,10.81780945]
[1753394215419,6.03674058,186.36,186.34,0.72]